Cogmind - Beta 12 @@@ ROGUE MODE // 2024.01.28 @ 17:29:35 Player: Luminiferous Result: Self-destructed Performance ------------- Evolutions (4) 2000 Regions Visited (9) 1800 Robots Destroyed (51) 255 Value Destroyed (1407) 1407 Prototype IDs (25) 500 Alien Tech Used (0) 0 Bonus (922) 922 TOTAL SCORE: 6884 Bonus ------- Follower Combat Kills 141 Entered DSFs 500 Aligned with FarCom 300 Friendly Fire -19 Cogmind --------- Core Integrity 621/850 Matter 167/300 Energy 100/100 System Corruption 9% Temperature Cool (0) Movement Core (50) Location -6/Waste Parts ------- > --- POWER (1) -------- (None) > --- PROPULSION (5) --- (None) > --- UTILITY (7) ------ Propulsion Shielding > --- WEAPON (2) ------- (None) > --- INVENTORY (5) ---- Micro Nuclear Core VTOL Module VTOL Module Biomechanical Wings Scatter Rocket Array Peak State ------------ > --- POWER ------------ Light Nuclear Core > --- PROPULSION ------- VTOL Module VTOL Module VTOL Module Cesium-ion Thruster Biomechanical Wings > --- UTILITY ---------- Structural Scanner ECM Suite Propulsion Shielding Improved Light Armor Plating System Shield System Shield > --- WEAPON ----------- Gauss Rifle Scatter Rocket Array > --- INVENTORY -------- Light Ion Engine Light Deuterium Engine Micro Nuclear Core VTOL Module VTOL Module [Rating: 41] Favorites ----------- Power Ion Engine Engine Ion Engine Power Core Light Nuclear Core Propulsion Light Treads Treads Light Treads Leg Aluminum Leg Wheel Compact Wheel Flight Unit VTOL Module Utility Light Armor Plating Device Structural Scanner Storage High-capacity Storage Unit Hackware System Shield Protection Light Armor Plating Weapon Light Cannon Energy Gun Medium Laser Ballistic Gun Gauss Rifle Ballistic Cannon Light Cannon Launcher Scatter Rocket Array Build | -11 -10 -10 -10 -9 -8 -7 -7 -6 -6 ------- Run | Jun Mat Min Exi Min Mat Fac DSF Fac Was Slots Evolved 8 | . . . . . 4 2 . 2 . Power . | . . . . . . . . . . Propulsion 3 | . . . . . 1 2 . . . Utility 5 | . . . . . 3 . . 2 . Weapon . | . . . . . . . . . . Parts Attached 60 | 2 14 4 . 2 26 3 . 8 1 Power 9 | . 1 1 . . 5 1 . 1 . Engine 7 | . 1 1 . . 4 . . 1 . Core 2 | . . . . . 1 1 . . . Reactor . | . . . . . . . . . . Propulsion 22 | 2 5 2 . . 7 2 . 3 1 Treads 11 | 2 4 2 . . 3 . . . . Leg . | . . . . . . . . . . Wheel 1 | . 1 . . . . . . . . Hover . | . . . . . . . . . . Flight 10 | . . . . . 4 2 . 3 1 Utility 19 | . 5 1 . . 10 . . 3 . Device 3 | . . . . . 2 . . 1 . Storage 5 | . 3 . . . 2 . . . . Processor . | . . . . . . . . . . Hackware 3 | . . . . . 2 . . 1 . Protection 8 | . 2 1 . . 4 . . 1 . Artifact . | . . . . . . . . . . Weapon 10 | . 3 . . 2 4 . . 1 . Energy Gun . | . . . . . . . . . . Energy Cannon . | . . . . . . . . . . Ballistic Gun 1 | . . . . . 1 . . . . Ballistic Cannon 8 | . 3 . . 2 3 . . . . Launcher 1 | . . . . . . . . 1 . Special Weapon . | . . . . . . . . . . Impact Weapon . | . . . . . . . . . . Slashing Weapon . | . . . . . . . . . . Piercing Weapon . | . . . . . . . . . . Special Melee Weapon . | . . . . . . . . . . Unidentified Prototypes 2 | . . . . . . . . 2 . Parts Lost 15 | . . 2 . . 7 . . . 6 Power 3 | . . . . . 3 . . . . Propulsion 3 | . . 1 . . . . . . 2 Utility 7 | . . 1 . . 3 . . . 3 Weapon 2 | . . . . . 1 . . . 1 Highest Loss Streak 6 | . . 2 . . 1 . . . 6 To Critical Strikes . | . . . . . . . . . . Average Slot Usage (%) 88 | . 87 98 71 98 86 . 92 84 89 Engine 10 | . 13 12 14 14 8 . . 1 6 Treads 23 | . 27 27 28 28 26 . . . . Flight 4 | . . . . . . . 38 33 31 Device 1 | . . . . . . . 7 13 13 Storage 10 | . 14 14 14 14 8 . . . . Hackware 4 | . . . . . 7 . 15 14 20 Protection 11 | . 3 14 14 14 17 . 15 8 13 Ballistic Cannon 18 | . 26 28 . 26 17 . . . . Naked Turns . | . . . . . . . . . . Heaviest Build 61 | 12 54 54 48 54 61 14 14 16 16 Greatest Support 60 | 40 40 40 40 40 60 21 21 25 25 Greatest Overweight (x) 2 | . 2 1 1 1 1 . 1 . 1 Average Overweight (x) . | . . 1 1 1 . . . . . Largest Inventory Capacity 25 | 8 25 20 20 20 25 5 5 5 5 Average Capacity 16 | 8 16 20 20 20 19 5 5 5 5 Most Carried 20 | 6 18 19 20 20 20 4 3 5 5 Average Carried 14 | 6 13 16 20 19 17 3 3 4 4 Final Capacity 20 | 8 20 20 20 20 5 5 5 5 5 Final Carried 20 | 6 15 20 20 19 5 3 3 4 5 Class Distribution -------------------- 86% | Mutant 12% | Hacker-Sprinter Dominant Class ---------------- Mutant | -10/Materials Mutant | -10/Mines Mutant | -10/Exiles Mutant | -9/Mines Mutant | -8/Materials Mutant | -7/Factory Hacker-Mutant | -7/DSF Hacker-Sprinter | -6/Factory Hacker-Sprinter | -6/Waste Resources | -11 -10 -10 -10 -9 -8 -7 -7 -6 -6 ----------- Run | Jun Mat Min Exi Min Mat Fac DSF Fac Was Matter Collected 2101 | 200 526 236 . 54 859 . . 226 . Remotely . | . . . . . . . . . . Salvage Created 1368 | . 408 169 . . 673 . . 118 . Parts 78 | . 29 7 . . 35 . . 7 . Haulers Intercepted 6 | . 2 . . . 4 . . . . Recyclers Shooed 2 | . 1 . . . 1 . . . . Parts Field Recycled . | . . . . . . . . . . Retrieved Matter . | . . . . . . . . . . Parts Self-Destructed . | . . . . . . . . . . Prevented . | . . . . . . . . . . Kills | -11 -10 -10 -10 -9 -8 -7 -7 -6 -6 ------- Run | Jun Mat Min Exi Min Mat Fac DSF Fac Was Combat Hostiles Destroyed 31 | . 10 6 . . 14 . . 1 . Guns 1 | . . . . . . . . 1 . Cannons 30 | . 10 6 . . 14 . . . . Classes Destroyed 11 | . 6 1 . . 3 . . 1 . Worker 4 | . 3 . . . 1 . . . . Tunneler 1 | . . . . . 1 . . . . Hauler 6 | . 2 . . . 4 . . . . Recycler 2 | . . . . . 2 . . . . Operator 2 | . 1 . . . 1 . . . . Watcher 5 | . 1 . . . 2 . . 2 . Swarmer 6 | . 3 . . . 3 . . . . Grunt 17 | . 7 4 . . 6 . . . . Sentry 4 | . . 2 . . 2 . . . . Hunter 3 | . . . . . 3 . . . . Programmer 1 | . . . . . . . . 1 . Best Kill Streak 3 | . 3 2 . . 3 . . 1 . Combat Bots Only 3 | . 3 2 . . 3 . . 1 . Max Kills in Single Turn 1 | . 1 1 . . 1 . . 1 . Gunslinging . | . . . . . . . . . . Exploded . | . . . . . . . . . . Melee . | . . . . . . . . . . Uniques/NPCs Destroyed . | . . . . . . . . . . Combat | -11 -10 -10 -10 -9 -8 -7 -7 -6 -6 -------- Run | Jun Mat Min Exi Min Mat Fac DSF Fac Was Damage Taken 2274 | . 300 534 . 22 921 . 126 142 229 Core 392 | . 27 77 . . 59 . . 22 207 Absorbed by Shields . | . . . . . . . . . . Redirected to Shielding 36 | . . . . . . . . 21 15 Regen/Repaired (Parts) 300 | . 192 . . . . . . 108 . Core Remaining (%) 86 | 100 . . . 58 89 . 100 . . Volleys Fired 166 | . 41 21 . . 79 . 1 24 . Largest 2 | . 2 2 . . 2 . 1 1 . Hottest 79 | . 70 70 . . 79 . 28 28 . Shots Fired 306 | . 82 42 . 2 155 . 1 24 . Gun 26 | . . . . . 1 . 1 24 . Cannon 280 | . 82 42 . 2 154 . . . . Launcher . | . . . . . . . . . . Special . | . . . . . . . . . . Kinetic 306 | . 82 42 . 2 155 . 1 24 . Thermal . | . . . . . . . . . . Explosive . | . . . . . . . . . . Electromagnetic . | . . . . . . . . . . Robot Hit Streak 16 | . 6 8 . . 8 . 5 16 . Robot Miss Streak 13 | . 5 2 . 1 13 . . 2 . Penetration Max . | . . . . . . . . . . Secondary Targets . | . . . . . . . . . . Shots Hit Robots 189 | . 37 32 . . 99 . 1 20 . Core Hits 115 | . 19 11 . . 80 . . 5 . Critical Kills . | . . . . . . . . . . Critical Parts Destroyed . | . . . . . . . . . . Critical Strikes 10 | . 4 2 . . 4 . . . . Blast 10 | . 4 2 . . 4 . . . . Melee Attacks . | . . . . . . . . . . Impact . | . . . . . . . . . . Slashing . | . . . . . . . . . . Piercing . | . . . . . . . . . . Sneak Attacks . | . . . . . . . . . . Combat Hostiles . | . . . . . . . . . . Follow-up Attacks . | . . . . . . . . . . Damage Inflicted 3356 | . 672 554 . 19 1678 . 16 417 . Guns 433 | . . . . . . . 16 417 . Cannons 2910 | . 662 554 . 19 1675 . . . . Explosions . | . . . . . . . . . . Melee . | . . . . . . . . . . Ramming 13 | . 10 . . . 3 . . . . Kinetic 3343 | . 662 554 . 19 1675 . 16 417 . Thermal . | . . . . . . . . . . Explosive . | . . . . . . . . . . Electromagnetic . | . . . . . . . . . . Impact . | . . . . . . . . . . Slashing . | . . . . . . . . . . Piercing . | . . . . . . . . . . Highest Corruption 9 | . 2 2 2 2 . . . 2 9 Average Corruption 2 | . 1 2 2 2 . . . 1 6 Corruption Purged . | . . . . . . . . . . Corruption Blocked . | . . . . . . . . . . Effects 64 | . 17 17 9 14 . . . 4 3 Message Errors 15 | . 4 3 3 3 . . . 1 1 Matter Fused 19 | . 5 5 3 2 . . . 3 1 Heat Flow Errors 7 | . 1 3 . 3 . . . . . Energy Discharges 10 | . 5 1 3 1 . . . . . Parts Rejected 1 | . . 1 . . . . . . . Data Loss (minor) 6 | . 1 3 . 1 . . . . 1 Data Loss (major) 2 | . . . . 2 . . . . . Misfires 3 | . 1 . . 2 . . . . . Alerts 1 | . . 1 . . . . . . . Overload Shots . | . . . . . . . . . . Overflow Damage 7 | . . . . . 7 . . . . Projectiles 7 | . . . . . 7 . . . . Explosions . | . . . . . . . . . . Melee . | . . . . . . . . . . Knockbacks 39 | . 6 4 . . 29 . . . . Impact . | . . . . . . . . . . Kinetic 38 | . 6 3 . . 29 . . . . Secondary 1 | . . 1 . . . . . . . Self-Inflicted Damage . | . . . . . . . . . . Shots . | . . . . . . . . . . Rammed 2 | . 1 . . . 1 . . . . Targets Rammed 2 | . 1 . . . 1 . . . . Kicked . | . . . . . . . . . . Crushed . | . . . . . . . . . . Highest Temperature 270 | . 255 270 . 228 162 . . 2 . Average Temperature 53 | . 42 112 . 83 29 . . 2 . Received Heat Transfer 609 | . 132 240 . 12 225 . . . . Effects 1 | . . 1 . . . . . . . Interference 1 | . . 1 . . . . . . . Siege Activations . | . . . . . . . . . . Robots Corrupted . | . . . . . . . . . . Combat Hostiles . | . . . . . . . . . . Parts Fried . | . . . . . . . . . . Impact Corruptions . | . . . . . . . . . . Robots Melted . | . . . . . . . . . . Combat Hostiles . | . . . . . . . . . . Parts Melted . | . . . . . . . . . . Heat Transferred . | . . . . . . . . . . Parts Sabotaged . | . . . . . . . . . . Parts Stolen . | . . . . . . . . . . Parts Stripped . | . . . . . . . . . . Power Chain Reactions . | . . . . . . . . . . Missiles Intercepted . | . . . . . . . . . . Alert | -11 -10 -10 -10 -9 -8 -7 -7 -6 -6 ------- Run | Jun Mat Min Exi Min Mat Fac DSF Fac Was Peak Influence 198 | . 198 122 . 116 151 37 25 112 44 Initial 37 | . . 37 . . . 37 25 12 14 Average 51 | . 68 44 . 48 50 37 25 35 29 Maximum Alert Level . | . . . . . . . . . . Low Security (%) 100 | 100 100 100 . 100 100 100 100 100 100 Level 1 . | . . . . . . . . . . Level 2 . | . . . . . . . . . . Level 3 . | . . . . . . . . . . Level 4 . | . . . . . . . . . . Level 5 . | . . . . . . . . . . High Security . | . . . . . . . . . . Max Security . | . . . . . . . . . . Squads Dispatched 7 | . 2 . . . 2 . . 3 . Investigation 2 | . 2 . . . . . . . . Extermination 1 | . . . . . . . . 1 . Reinforcement 3 | . . . . . 1 . . 2 . Assault . | . . . . . . . . . . Garrison 1 | . . . . . 1 . . . . Intercept . | . . . . . . . . . . Searches Triggered . | . . . . . . . . . . Construction Impeded . | . . . . . . . . . . Haulers Reinforced . | . . . . . . . . . . Active Scanning Responses . | . . . . . . . . . . Cargo Convoy Interrupts . | . . . . . . . . . . Stealth | -11 -10 -10 -10 -9 -8 -7 -7 -6 -6 --------- Run | Jun Mat Min Exi Min Mat Fac DSF Fac Was Distress Signals 6 | . . . . . 5 . . 1 . Communications Jammed . | . . . . . . . . . . Distress Signals . | . . . . . . . . . . Times Spotted 72 | . 20 8 . 2 29 . 1 6 6 Peak Tracking Total 6 | . 4 2 . 2 4 . 2 4 6 Tactical Retreats 13 | . 5 . . . 6 . . 2 . Traps | -11 -10 -10 -10 -9 -8 -7 -7 -6 -6 ------- Run | Jun Mat Min Exi Min Mat Fac DSF Fac Was Traps Triggered 5 | . 4 . . . . . . 1 . Indirectly . | . . . . . . . . . . Trap Hack Attempts . | . . . . . . . . . . Triggered . | . . . . . . . . . . Disarmed . | . . . . . . . . . . Reprogrammed . | . . . . . . . . . . Reused . | . . . . . . . . . . Traps Extracted . | . . . . . . . . . . Installed . | . . . . . . . . . . Triggered . | . . . . . . . . . . Machines | -11 -10 -10 -10 -9 -8 -7 -7 -6 -6 ---------- Run | Jun Mat Min Exi Min Mat Fac DSF Fac Was Machines Disabled 4 | . 3 . . . 1 . . . . Max in Single Turn 1 | . 1 . . . 1 . . . . Machines Repaired . | . . . . . . . . . . Machines Sabotaged . | . . . . . . . . . . Overloaded Fab Kills . | . . . . . . . . . . Hacking | -11 -10 -10 -10 -9 -8 -7 -7 -6 -6 --------- Run | Jun Mat Min Exi Min Mat Fac DSF Fac Was Machines Accessed 15 | . 5 . 2 . 1 1 . 6 . Terminals 10 | . 4 . . . 1 1 . 4 . Fabricators . | . . . . . . . . . . Repair Stations 2 | . 1 . . . . . . 1 . Recycling Units 1 | . . . . . . . . 1 . Scanalyzers . | . . . . . . . . . . Garrison Access . | . . . . . . . . . . Total Hacks 44 | . 19 . 2 . 3 1 . 19 . Successful 24 | . 11 . 2 . 2 1 . 8 . Failed 20 | . 8 . . . 1 . . 11 . Catastrophic 5 | . 1 . . . 1 . . 3 . Database Lockouts . | . . . . . . . . . . Manual 27 | . 12 . 1 . 3 . . 11 . Terminals 29 | . 12 . . . 3 1 . 13 . Fabricators . | . . . . . . . . . . Repair Stations 11 | . 7 . . . . . . 4 . Recycling Units 2 | . . . . . . . . 2 . Scanalyzers . | . . . . . . . . . . Garrison Access . | . . . . . . . . . . Terminal Hacks 8 | . 2 . 2 . 1 1 . 2 . Record 1 | . . . 1 . . . . . . Open DSF 2 | . . . . . . 1 . 1 . Terminal Index 1 | . . . . . . . . 1 . Hauler Manifests 2 | . 1 . . . 1 . . . . Registered Components 1 | . 1 . . . . . . . . EX-Prototype ID Bank 1 | . . . 1 . . . . . . Fabricator Hacks . | . . . . . . . . . . Repair Station Hacks 8 | . 6 . . . . . . 2 . Scan Component 4 | . 3 . . . . . . 1 . Repair 4 | . 3 . . . . . . 1 . Recycling Unit Hacks 2 | . . . . . . . . 2 . Report Inventory 1 | . . . . . . . . 1 . Retrieve Matter 1 | . . . . . . . . 1 . Scanalyzer . | . . . . . . . . . . Garrison Access Hacks . | . . . . . . . . . . Unauthorized Hacks 6 | . 3 . . . 1 . . 2 . Terminals 6 | . 3 . . . 1 . . 2 . Botnet 6 | . 3 . . . 1 . . 2 . Fabricators . | . . . . . . . . . . Repair Stations . | . . . . . . . . . . Recycling Units . | . . . . . . . . . . Scanalyzers . | . . . . . . . . . . Garrison Access . | . . . . . . . . . . Data Cores Recovered . | . . . . . . . . . . Used . | . . . . . . . . . . Hacking Detections 10 | . 5 . . . 1 . . 4 . Full Trace Events . | . . . . . . . . . . Feedback Events . | . . . . . . . . . . Feedback Blocked . | . . . . . . . . . . Robot Schematics Acquired . | . . . . . . . . . . Robots Built . | . . . . . . . . . . Authchips . | . . . . . . . . . . Time . | . . . . . . . . . . Total Robot Build Rating . | . . . . . . . . . . Part Schematics Acquired . | . . . . . . . . . . Parts Built . | . . . . . . . . . . Authchips . | . . . . . . . . . . Time . | . . . . . . . . . . Total Part Build Rating . | . . . . . . . . . . Parts Repaired 4 | . 3 . . . . . . 1 . Time 128 | . 90 . . . . . . 38 . Parts Recycled . | . . . . . . . . . . Recycled Matter . | . . . . . . . . . . Retrieved Matter . | . . . . . . . . . . Retrieved Components . | . . . . . . . . . . Parts Scanalyzed . | . . . . . . . . . . Part Schematics Acquired . | . . . . . . . . . . Parts Damaged . | . . . . . . . . . . Bothacking | -11 -10 -10 -10 -9 -8 -7 -7 -6 -6 ------------ Run | Jun Mat Min Exi Min Mat Fac DSF Fac Was Used RIF Installer . | . . . . . . . . . . Robots Hacked . | . . . . . . . . . . Non-combat . | . . . . . . . . . . Combat . | . . . . . . . . . . Robot Hacks Applied . | . . . . . . . . . . Relay Couplers Released . | . . . . . . . . . . Fabnet Peak Effective % . | . . . . . . . . . . Robots Rewired . | . . . . . . . . . . Allies Hacked . | . . . . . . . . . . Hacks Repelled . | . . . . . . . . . . Allies | -11 -10 -10 -10 -9 -8 -7 -7 -6 -6 -------- Run | Jun Mat Min Exi Min Mat Fac DSF Fac Was Total Allies 3 | . . 3 . . . . . . . Largest Group 3 | . . 3 3 3 2 . . . . Highest-Rated Group 40 | . . 40 40 40 23 . . . . Highest-Rated Ally 16 | . . 16 16 16 16 . . . . Total Orders . | . . . . . . . . . . Ally Attacks 36 | . . 16 . 16 4 . . . . Total Damage 382 | . . 135 . 197 50 . . . . Kills 7 | . . 2 . 5 . . . . . Allies Corrupted . | . . . . . . . . . . Allies Melted . | . . . . . . . . . . Intel | -11 -10 -10 -10 -9 -8 -7 -7 -6 -6 ------- Run | Jun Mat Min Exi Min Mat Fac DSF Fac Was Robot Analysis Total . | . . . . . . . . . . Derelict Logs Recovered 3 | . . 2 . 1 . . . . . Drone Launches . | . . . . . . . . . . Drone Recoveries . | . . . . . . . . . . Exploration | -11 -10 -10 -10 -9 -8 -7 -7 -6 -6 ------------- Run | Jun Mat Min Exi Min Mat Fac DSF Fac Was Turns Passed 7618 | 3 1864 1253 504 731 2255 6 31 924 47 Spaces Moved 4209 | 1 848 486 211 294 1092 9 51 1075 142 Core . | . . . . . . . . . . Treads 2883 | 1 848 486 211 294 1043 . . . . Legs . | . . . . . . . . . . Wheels . | . . . . . . . . . . Hover . | . . . . . . . . . . Flight 1326 | . . . . . 49 9 51 1075 142 Fastest Speed 23 | 160 160 240 240 240 29 23 23 23 25 Average Speed 143 | 160 185 240 240 240 160 23 56 24 25 Slowest Speed 320 | 160 320 240 240 240 240 23 109 25 120 Overloaded Moves . | . . . . . . . . . . Propulsion Burnouts . | . . . . . . . . . . Robots Hopped 7 | . . . . . . . . 7 . Cave-ins Triggered . | . . . . . . . . . . Exploration Rate (%) 47 | 1 93 71 60 54 39 1 43 24 84 Regions Visited 9 Branch Regions 3 Pre-discovered Areas 1 | . . . 1 . . . . . . Known Exits Taken 1 | . . . . . . 1 . . . Unknown Exits Taken 6 | 1 1 1 1 1 1 . . . . Scrap Searched 1 | . . . . 1 . . . . . Spaces Dug . | . . . . . . . . . . Terrain Destroyed 1 | . . . . . . . . 1 . Melee . | . . . . . . . . . . Projectile 1 | . . . . . . . . 1 . AOE . | . . . . . . . . . . Terrain Rammed . | . . . . . . . . . . Walls Destroyed . | . . . . . . . . . . Machines Disabled . | . . . . . . . . . . Actions | -11 -10 -10 -10 -9 -8 -7 -7 -6 -6 --------- Run | Jun Mat Min Exi Min Mat Fac DSF Fac Was Total 5493 | 2 1059 532 210 320 1448 11 51 1709 151 Wait 972 | . 120 14 . 24 209 . . 598 7 Move 4187 | . 847 485 210 293 1091 8 50 1061 142 Hop 7 | . . . . . . . . 7 . Pick Up 53 | . 20 6 . 1 19 . . 6 1 Fast Attach 13 | . 5 . . . 6 . . 1 1 Attach 35 | . 6 3 . 2 19 2 . 3 . Detach 8 | . 4 2 . . 1 . . 1 . Swap 12 | 2 3 1 . . 1 1 . 4 . Drop 38 | . 12 . . . 22 . . 4 . Fire 166 | . 41 21 . . 79 . 1 24 . Melee . | . . . . . . . . . . Ram . | . . . . . . . . . . Kick . | . . . . . . . . . . Crush 2 | . 1 . . . 1 . . . . Escape Stasis . | . . . . . . . . . . Rewire . | . . . . . . . . . . Trap . | . . . . . . . . . . Miscellaneous . | . . . . . . . . . . Route ------- -11/Junkyard -10/Materials (discovered 4 exits: [*Mat x3] / [*Min]) -10/Mines (discovered 3 exits: [*Mat x2] / *Exi) -10/Exiles -9/Mines -8/Materials -7/Factory (discovered 2 exits: Sto / DSF) -7/DSF -6/Factory -6/Waste History --------- Turn | Location | Event 4 | -11/Junkyard | Discovered new exit (range 0) 4 | -11/Junkyard | Entered Materials 317 | -10/Materials | Build established: Mutant 492 | -10/Materials | Discovered new exit (range 10) 723 | -10/Materials | Discovered new exit (range 15) 896 | -10/Materials | Discovered new exit (range 15) 1256 | -10/Materials | Repaired Lgt. Cannon 1283 | -10/Materials | Repaired Lgt. Treads 1322 | -10/Materials | Repaired Lgt. Nuclear Core 1588 | -10/Materials | Discovered new exit (range 16) 1868 | -10/Materials | Entered Mines 1885 | -10/Mines | Learned Materials security intel 1912 | -10/Mines | A weapon hastily lodged in a ceiling crevice suddenly fell to the ground 2724 | -10/Mines | Discovered new exit (range 12) 2746 | -10/Mines | Found a hidden stash of uninstalled traps 2866 | -10/Mines | Assisted by bots powering up and referring to "LRC-V3" 2945 | -10/Mines | Learned 2 Materials zone layouts 3074 | -10/Mines | Discovered new exit (range 9) 3108 | -10/Mines | Deemed a non-threat by the Exiles lab entrance 3110 | -10/Mines | Discovered new exit (range 5) 3121 | -10/Mines | Entered Exiles 3121 | -10/Exiles | Accompanied by 3 allies 3179 | -10/Exiles | Met 8R-AWN 3222 | -10/Exiles | Met EX-HEX 3287 | -10/Exiles | Met EX-BIN 3321 | -10/Exiles | Aligned with FarCom system 3323 | -10/Exiles | Given EX-Vault access code 3381 | -10/Exiles | Opened EX-Vault 3438 | -10/Exiles | Warned to stay clear of 0b10 Research branches 3478 | -10/Exiles | Exiles lab attacked by MAIN.C 3532 | -10/Exiles | Learned location of Zion (-7) 3599 | -10/Exiles | Discovered new exit (range 14) 3625 | -10/Exiles | Entered Mines 3625 | -9/Mines | Accompanied by 3 allies 3661 | -9/Mines | Met a Derelict bent on vengeance 4154 | -9/Mines | Assembled infested the area 4159 | -9/Mines | Assisted by a Guerilla fighting off Assembled 4339 | -9/Mines | Discovered new exit (range 8) 4356 | -9/Mines | Entered Materials 4356 | -8/Materials | Accompanied by 2 allies 4356 | -8/Materials | Evolved 4 slots: Propulsion x1, Utility x3 6229 | -8/Materials | Garrison activated, responded to threat 6509 | -8/Materials | Discovered new exit (range 11) 6611 | -8/Materials | Entered Factory 6611 | -7/Factory | Evolved 2 slots: Propulsion x2 6612 | -7/Factory | Identified exit to Storage 6617 | -7/Factory | Identified exit to DSF 6617 | -7/Factory | Entered DSF 6634 | -7/DSF | Discovered new exit (range 12) 6647 | -7/DSF | Additional patrols routed to DSF 6648 | -7/DSF | Entered Factory 6648 | -6/Factory | Evolved 2 slots: Utility x2 6694 | -6/Factory | Repaired Imp. Light Armor Plating 6734 | -6/Factory | Discovered new exit (range 16) 6943 | -6/Factory | Build established: Hacker-Sprinter 7226 | -6/Factory | Found Prototype Launcher 7226 | -6/Factory | Identified Scatter Rocket Array 7572 | -6/Factory | Manually triggered Chute Trap 7572 | -6/Factory | Sucked down chute 7572 | -6/Factory | Entered Waste 7578 | -6/Waste | Spotted C-40 Crusher 7587 | -6/Waste | EMP discharged 7590 | -6/Waste | Spotted C-40 Crusher 7594 | -6/Waste | Spotted C-40 Crusher 7594 | -6/Waste | Spotted C-40 Crusher 7601 | -6/Waste | Spotted C-40 Crusher 7603 | -6/Waste | Spotted C-40 Crusher 7605 | -6/Waste | Crushed by Compactor (1 part destroyed, 1 dropped) 7613 | -6/Waste | Crushed by Compactor (1 part destroyed, 2 dropped) 7616 | -6/Waste | Crushed by Compactor (1 part destroyed, 2 dropped) 7616 | -6/Waste | Crushed by Compactor (1 part destroyed, 2 dropped) 7619 | -6/Waste | Crushed by Compactor (1 part destroyed, 1 dropped) 7619 | -6/Waste | Self-destructed Last Messages --------------- 07587_ System corrupted (+7). 07597_ Q8TST2<%X6NA| NEY3NHM 07605_ Gauss Rifle crushed. 07605_ Biomechanical Wings crushed. 07613_ VTOL Module crushed. 07613_ Cesium-ion Thruster crushed. 07613_ Acquired Biomechanical Wings. 07615_ Acquired Cesium-ion Thruster. 07616_ VTOL Module crushed. 07616_ Imp. Light Armor Plating crushed. 07616_ Nuclear Pulse Thruster crushed. 07616_ Lgt. Deuterium Engine crushed. 07616_ ECM Suite crushed. 07616_ System Shield crushed. 07616_ Structural Scanner crushed. 07616_ Cesium-ion Thruster destroyed. 07618_ System corrupted: Matter fused (-9). 07619_ Lgt. Deuterium Engine crushed. 07619_ System Shield crushed. 07619_ Hacking Suite crushed. Map ----- +----------------------------------------------------+ | ?????????????????????????????????????????????????? | | ?????????????????????????????????????????????????? | | ?????????????????????########????????????????????? | | ?????????????????????########????????????????????? | | ?????????????????????## ##????????????????????? | | ##?????? ##????## * ##????????????????????? | | ##?????? ##????## ##??? ???????????????? | | ###???## ##????## #### ????????????????? | | ###???## ##????## #### ?????????????????? | | ??? ##????## ?????????????????? | | ?????? ##????## ???????????????????? | | ?????? ##????## ????????????????????? | | ???? ##????## ????????????????????? | | ##????## ##????## ##????????????????????? | | ##????## ##????## ##????????????????????? | | ##????## ##????## ##????????????????????? | | ######## ##????## ####??????????????????? | | ######## ##????## ####??????????????????? | | ##????## ##??????????????????? | | ##????## ##??????????????????? | | ##????## ##??????????????????? | | ##????## ##??????????????????? | | ######## ##????## ####??????????????????? | | ######## ##????## CC####??????????????????? | | ##????## ##????##CCCC##????????????????????? | | ##????## ########CC@!####??????????????????? | | ##????## ######## CC####??????????????????? | | ##????## CC ##??????????????????? | | ##????## = ##??????????????????? | | ##????## ##??????????????????? | | ##????## ##??????????????????? | | ##????## ######## ####??????????????????? | | ##????## ######## ####??????????????????? | | ##????## ##????## ##????????????????????? | | ##????## ##????## ##????????????????????? | | ##????## ##????## ##????????????????????? | | #####????########????########????????????????????? | | #####????########????########????????????????????? | | ?????????????????????????????????????????????????? | | ?????????????????????????????????????????????????? | | ?????????????????????????????????????????????????? | | ?????????????????????????????????????????????????? | | ?????????????????????????????????????????????????? | | ?????????????????????????????????????????????????? | | ?????????????????????????????????????????????????? | | ?????????????????????????????????????????????????? | | ?????????????????????????????????????????????????? | | ?????????????????????????????????????????????????? | | ?????????????????????????????????????????????????? | | ?????????????????????????????????????????????????? | +----------------------------------------------------+ Best States ------------- Heat Dissipation 37 Energy Generation 14 Energy Capacity 250 Matter Stores 300 Matter Capacity 300 Sight Range 16 Terrain Scan Density 10 Armor Coverage 450 Propulsion Shielding 33 Evasion (%) 65 Recoil Reduction 3 Offensive Hacking 10 Defensive Hacking 20 Item Schematics ----------------- None Robot Schematics ------------------ None Fabricated ------------ Nothing Alien Tech Used ----------------- None Achievements -------------- None Challenges ------------ None Game ------ Seed ExperimentalIonicSpecial Manual? 0 Play Time 00:41:45 Cumulative 28.4 hours Start 2024.01.28 @ 16:46:25 End 2024.01.28 @ 17:29:35 Sessions 1 Manual Loads 0 Difficulty Rogue Special Mode None Game No. 58 Rogue 58 Adventurer 0 Explorer 0 Win Type - Total 0 Types 0/0/0/0/0/0/0/0/0 Lore% 27 Gallery% 36 Achievement% 30 Wizard Run 0 Options --------- ASCII 0 Keyboard 0 Movement Mouse Keybinds 1 Fullscreen 2 Font 18/SmallcapsGlow Map View 76x50 Tactical HUD 1 Map Filters SHIFT_HUE(270)|BRIGHTNESS(75) Filters SHIFT_HUE(90)|BRIGHTNESS(125) Steam 1 RUN: 86501c94-e556-4b24-93bc-7f5c74ca2a00